bitfinex/quotes_BTCUSD_20241226
["timestamp","ask_amount","ask_price","bid_price","bid_amount"]
[1735231504292,0.00698937,96393.0,96383.0,0.207505]
[1735231504506,0.00798937,96393.0,96379.0,0.207514]
[1735231504934,0.00798937,96393.0,96380.0,0.207511]
[1735231505110,8.56e-05,96391.0,96380.0,0.207511]
[1735231505511,0.00699118,96390.0,96380.0,0.207511]
[1735231505713,0.00799118,96390.0,96380.0,0.207511]
[1735231506121,0.00699118,96390.0,96380.0,0.207511]
[1735231506533,0.00699118,96390.0,96385.0,0.207499]
[1735231506994,0.001,96390.0,96385.0,0.207499]
[1735231507216,0.002,96390.0,96385.0,0.207499]
[1735231507409,8.56e-05,96391.0,96385.0,0.207499]
[1735231507706,0.002,96390.0,96381.0,0.207509]
[1735231507925,0.00899002,96390.0,96381.0,0.207509]
[1735231508521,0.00899002,96390.0,96382.0,0.207507]
[1735231509155,0.00699002,96390.0,96382.0,0.415014]
[1735231509960,0.00799002,96390.0,96382.0,0.415014]
[1735231510158,0.00899002,96390.0,96382.0,0.415014]
[1735231511608,0.002,96390.0,96382.0,0.415014]
[1735231511946,0.02095626,96389.0,96382.0,0.415014]
[1735231512386,0.02095626,96389.0,96382.0,0.207507]
[1735231513037,0.001,96390.0,96386.0,0.207498]
[1735231513235,0.001,96389.0,96386.0,0.207498]
[1735231513641,0.002,96389.0,96386.0,0.207498]
[1735231513812,0.001,96389.0,96386.0,0.04449799]
[1735231513995,8.56e-05,96391.0,96380.0,0.12456247]
[1735231514192,0.001,96390.0,96386.0,0.207498]
[1735231514441,0.001,96390.0,96386.0,0.414996]
[1735231514643,0.001,96390.0,96388.0,0.207494]
[1735231514899,0.001,96390.0,96389.0,0.00103735]
[1735231515350,0.002,96390.0,96389.0,0.00103735]
[1735231515551,0.001,96390.0,96389.0,0.15103735]
[1735231515766,8.56e-05,96391.0,96390.0,0.35749]
[1735231516983,8.56e-05,96391.0,96389.0,0.57560571]
[1735231517235,8.56e-05,96391.0,96390.0,0.004]
[1735231517377,8.56e-05,96391.0,96390.0,0.34284867]
[1735231517580,0.15270494,96391.0,96390.0,0.34284867]
[1735231517781,0.14564471,96391.0,96390.0,0.34284867]
[1735231517981,0.15270494,96391.0,96390.0,0.34284867]
[1735231518186,0.22920494,96391.0,96390.0,0.34284867]
[1735231518615,0.31862015,96391.0,96390.0,0.34484867]
[1735231518818,0.00714583,96391.0,96390.0,0.15884867]
[1735231518972,0.00714583,96391.0,96390.0,0.006]
[1735231519199,0.00714583,96391.0,96377.0,0.0795]
[1735231519410,0.20749,96390.0,96378.0,0.2076862]
[1735231519616,0.01114583,96391.0,96381.0,0.207509]
[1735231519816,0.00699319,96389.0,96383.0,0.207505]
[1735231520180,0.0030856,96391.0,96383.0,0.207505]
[1735231520396,8.56e-05,96391.0,96383.0,0.207505]
[1735231520595,0.002,96390.0,96383.0,0.207505]
[1735231521112,0.00699319,96389.0,96383.0,0.207505]
[1735231521243,0.00699319,96389.0,96380.0,0.20751]
[1735231521446,0.002,96390.0,96384.0,0.207502]
[1735231521935,0.00699319,96389.0,96384.0,0.207502]
[1735231522114,0.00699319,96389.0,96386.0,0.207499]
[1735231522251,0.001,96390.0,96386.0,0.207499]
[1735231522610,8.56e-05,96391.0,96386.0,0.207499]
[1735231522831,0.002,96389.0,96386.0,0.207499]
[1735231523052,0.001,96390.0,96386.0,0.207499]
[1735231523856,0.001,96390.0,96380.0,0.12456247]
[1735231524034,0.001,96390.0,96381.0,0.00103737]
[1735231524242,8.56e-05,96391.0,96386.0,0.207499]
[1735231524703,0.207504,96384.0,96378.0,0.02864388]
[1735231524905,0.10498632,96390.0,96378.0,0.0001712]
[1735231524906,0.207513,96380.0,96378.0,0.0001712]
[1735231525053,0.15228632,96379.0,96378.0,0.0001712]
[1735231525408,0.15931083,96379.0,96378.0,0.0001712]
[1735231526211,0.16231083,96379.0,96378.0,0.0001712]
[1735231526343,0.16831083,96379.0,96378.0,0.0001712]
[1735231526731,0.23976882,96379.0,96378.0,0.0001712]
[1735231526991,0.16831083,96379.0,96378.0,0.0001712]
[1735231527201,0.12001083,96379.0,96378.0,0.0001712]
[1735231527416,0.11701083,96379.0,96378.0,0.0001712]
[1735231527820,0.01602451,96379.0,96378.0,0.0001712]
[1735231528775,0.01302451,96379.0,96378.0,0.0001712]
[1735231528986,0.01302451,96379.0,96373.0,0.0769]
[1735231529203,0.01302451,96379.0,96370.0,0.0001712]
[1735231529428,0.00702451,96379.0,96370.0,0.0001712]
[1735231529648,0.00702451,96379.0,96378.0,0.001]
[1735231529873,0.00702451,96379.0,96370.0,0.0001712]
[1735231530091,0.00702451,96379.0,96370.0,0.02961909]
[1735231530744,0.002,96379.0,96370.0,0.02961909]
[1735231530980,0.21437327,96378.0,96370.0,0.02961909]
[1735231531128,0.00685727,96378.0,96370.0,0.02961909]
[1735231531579,0.00685727,96378.0,96370.0,0.0001712]
[1735231531939,0.20752,96376.0,96370.0,0.0001712]
[1735231532140,0.207524,96374.0,96370.0,0.0001712]
[1735231532591,0.207529,96372.0,96370.0,0.0001712]
[1735231533055,0.10398632,96371.0,96370.0,0.0001712]
[1735231533177,0.11116618,96371.0,96370.0,0.0001712]
[1735231534067,0.207545,96365.0,96358.0,0.02009415]
[1735231534283,0.11116618,96371.0,96358.0,0.02009415]
[1735231534455,0.10398632,96371.0,96358.0,0.02009415]
[1735231534671,0.00717986,96370.0,96358.0,0.02009415]
[1735231534872,0.10398632,96369.0,96358.0,0.02009415]
[1735231535291,0.1040379,96369.0,96358.0,0.02009415]
[1735231535502,0.207539,96367.0,96358.0,0.02009415]
[1735231535705,0.207558,96359.0,96352.0,0.000171]
[1735231536116,0.00715744,96358.0,96352.0,0.000171]
[1735231536524,0.00715744,96358.0,96353.0,0.207568]
[1735231536881,0.20954,96367.0,96353.0,0.207568]
[1735231537086,0.207544,96365.0,96352.0,0.000171]
[1735231537295,0.207548,96363.0,96352.0,0.000171]
[1735231537521,0.02095916,96366.0,96352.0,0.000171]
[1735231537696,0.207544,96365.0,96352.0,0.000171]
[1735231538047,0.207553,96361.0,96352.0,0.000171]
[1735231538276,0.207548,96363.0,96352.0,0.000171]
[1735231538605,0.207552,96361.0,96352.0,0.000171]
[1735231538964,0.207552,96361.0,96352.0,0.002171]
[1735231539171,0.0071534,96360.0,96352.0,0.002171]
[1735231539648,0.415114,96359.0,96352.0,0.002171]
[1735231539839,0.06308154,96359.0,96352.0,0.002171]
[1735231540046,0.207557,96359.0,96352.0,0.000171]
[1735231540248,0.207564,96356.0,96352.0,0.000171]
[1735231540483,0.415128,96356.0,96352.0,0.001171]
[1735231540632,0.207564,96356.0,96352.0,0.001171]
[1735231540842,0.00715735,96355.0,96352.0,0.001171]
[1735231541206,0.207567,96354.0,96352.0,0.001171]
[1735231541407,0.04222884,96353.0,96352.0,0.002171]
[1735231541611,0.31155332,96354.0,96352.0,0.002171]
[1735231541970,0.11113742,96353.0,96352.0,0.001171]
[1735231542198,0.11113742,96353.0,96352.0,0.002171]
[1735231542348,0.11113742,96353.0,96352.0,0.001171]
[1735231542556,0.11113742,96353.0,96352.0,0.000171]
[1735231542786,0.11313742,96353.0,96352.0,0.000171]
[1735231542963,0.16596426,96353.0,96352.0,0.000171]
[1735231543524,0.16396426,96353.0,96352.0,0.000171]
[1735231544772,0.11313742,96353.0,96352.0,0.000171]
[1735231544931,0.11713742,96353.0,96352.0,0.000171]
[1735231545487,0.0131511,96353.0,96352.0,0.000171]
[1735231546157,0.006,96353.0,96352.0,0.000171]
[1735231546565,0.002,96353.0,96352.0,0.000171]
[1735231546765,0.00913911,96353.0,96352.0,0.000171]
[1735231546925,0.415124,96357.0,96352.0,0.000171]
[1735231547128,0.002,96353.0,96352.0,0.000171]
[1735231547368,0.10598632,96353.0,96352.0,0.000171]
[1735231547569,0.11312543,96353.0,96352.0,0.000171]
[1735231547773,0.11412543,96353.0,96352.0,0.000171]
[1735231548171,0.11112543,96353.0,96352.0,0.000171]
[1735231548397,0.11512543,96353.0,96352.0,0.000171]
[1735231548606,0.11712543,96353.0,96352.0,0.000171]
[1735231548920,0.01313911,96353.0,96352.0,0.000171]
[1735231549871,0.00713911,96353.0,96352.0,0.000171]
[1735231550223,0.002,96353.0,96352.0,0.000171]
[1735231550427,0.05085201,96353.0,96352.0,0.000171]
[1735231550635,0.15283833,96353.0,96352.0,0.000171]
[1735231551011,0.15483833,96353.0,96352.0,0.000171]
[1735231551216,0.11312543,96353.0,96352.0,0.000171]
[1735231551411,0.11112543,96353.0,96352.0,0.000171]
[1735231551611,0.11112543,96353.0,96352.0,0.001171]
[1735231551836,0.11312543,96353.0,96352.0,0.000171]
[1735231552258,0.11712543,96353.0,96352.0,0.000171]
[1735231552428,0.01313911,96353.0,96352.0,0.000171]
[1735231553011,0.01113911,96353.0,96352.0,0.000171]
[1735231553451,0.01313911,96353.0,96352.0,0.000171]
[1735231553831,0.01113911,96353.0,96352.0,0.000171]
[1735231554028,0.00713911,96353.0,96352.0,0.000171]
[1735231554301,0.001,96353.0,96352.0,0.000171]
[1735231554641,0.01012751,96353.0,96352.0,0.000171]
[1735231554891,0.00712751,96353.0,96352.0,0.000171]
[1735231555122,0.01312751,96353.0,96352.0,0.000171]
[1735231555355,0.002,96353.0,96352.0,0.000171]
[1735231555588,0.01212751,96353.0,96352.0,0.000171]
[1735231556261,0.01012751,96353.0,96352.0,0.000171]
[1735231556743,0.01112751,96353.0,96352.0,0.000171]
[1735231562530,0.11511383,96353.0,96352.0,0.000171]
[1735231563561,0.16815523,96353.0,96352.0,0.000171]
[1735231565156,0.01112751,96353.0,96352.0,0.000171]
[1735231565767,0.004,96353.0,96352.0,0.000171]
[1735231566133,0.003,96353.0,96352.0,0.000171]
[1735231566535,0.0001712,96358.0,96352.0,0.001171]
[1735231566734,0.0001712,96358.0,96353.0,0.20757]
[1735231566941,0.00712531,96357.0,96353.0,0.20757]
[1735231567339,0.00712531,96357.0,96352.0,0.004171]
[1735231567545,0.02860986,96357.0,96352.0,0.000171]
[1735231567905,0.02860986,96357.0,96353.0,0.002]
[1735231568106,0.207563,96356.0,96353.0,0.002]
[1735231568257,0.207563,96356.0,96352.0,0.000171]
[1735231568460,0.207567,96354.0,96352.0,0.002171]
[1735231568674,0.31155332,96354.0,96352.0,0.002171]
[1735231569079,0.11111309,96353.0,96352.0,0.002171]
[1735231569283,0.11111309,96353.0,96352.0,0.003171]
[1735231569648,0.11111309,96353.0,96352.0,0.002171]
[1735231570268,0.11111309,96353.0,96352.0,0.000171]
[1735231570876,0.11411309,96353.0,96352.0,0.000171]
[1735231571076,0.16920297,96353.0,96352.0,0.000171]
[1735231571302,0.40020297,96353.0,96352.0,0.000171]
[1735231571668,0.40620297,96353.0,96352.0,0.001171]
[1735231571824,0.45140297,96353.0,96352.0,0.001171]
[1735231572236,0.47440297,96353.0,96352.0,0.001171]
[1735231572460,0.47140297,96353.0,96352.0,0.001171]
[1735231572624,0.47540297,96353.0,96352.0,0.001171]
[1735231573218,0.46940297,96353.0,96352.0,0.000171]
[1735231573674,0.42031309,96353.0,96352.0,0.001171]
[1735231573872,0.207613,96333.0,96321.0,0.206979]
[1735231574070,0.10398632,96332.0,96320.0,0.12456247]
[1735231574282,0.207617,96331.0,96317.0,0.207646]
[1735231574632,0.20763,96326.0,96318.0,0.03287992]
[1735231575069,0.41536162,96326.0,96305.0,0.207671]
[1735231575272,0.207637,96322.0,96306.0,0.207669]
[1735231575481,0.00707124,96325.0,96312.0,0.207658]
[1735231575616,0.20773162,96326.0,96312.0,0.207658]
[1735231575823,0.00707124,96324.0,96312.0,0.207658]
[1735231576022,0.10398632,96323.0,96311.0,0.12117428]
[1735231576258,0.11105756,96323.0,96311.0,0.0791]
[1735231576443,0.207639,96321.0,96311.0,0.0791]
[1735231576644,0.00010162,96326.0,96311.0,0.0791]
[1735231576844,0.00707124,96320.0,96311.0,0.0791]
[1735231577049,0.01111592,96319.0,96311.0,0.0791]
[1735231577244,0.01818716,96319.0,96311.0,0.0791]
[1735231577722,0.01818716,96319.0,96300.0,0.0456]
[1735231577723,0.207673,96305.0,96300.0,0.0456]
[1735231577925,0.207673,96305.0,96303.0,0.0791]
[1735231578129,0.31165932,96305.0,96299.0,0.09284816]
[1735231578353,0.3186695,96305.0,96299.0,0.09284816]
[1735231578568,0.00701018,96305.0,96299.0,0.09284816]
[1735231578788,0.002,96319.0,96300.0,0.00103842]
[1735231578995,0.00797169,96305.0,96302.0,0.20768]
[1735231579217,0.001,96305.0,96302.0,0.20768]
[1735231579451,0.001,96305.0,96302.0,0.41536]
[1735231579962,0.001,96305.0,96304.0,0.207675]
[1735231580388,0.207631,96325.0,96310.0,0.207661]
[1735231580596,0.207634,96323.0,96310.0,0.207661]
[1735231580721,0.10398632,96322.0,96310.0,0.207661]
[1735231581422,0.00697169,96321.0,96302.0,0.20768]
[1735231581624,0.00697169,96321.0,96319.0,0.207643]
[1735231581820,0.007,96323.0,96319.0,0.207643]
[1735231582052,0.207621,96330.0,96314.0,0.207653]
[1735231582263,0.00697169,96322.0,96314.0,0.207653]
[1735231582468,0.00697169,96322.0,96311.0,0.1247]
[1735231582469,0.31162532,96321.0,96311.0,0.0791]
[1735231582698,0.11097665,96321.0,96311.0,0.0791]
[1735231582891,0.00699033,96321.0,96311.0,0.0791]
[1735231583100,0.02896213,96321.0,96311.0,0.0791]
[1735231583307,0.02896213,96321.0,96312.0,0.207658]
[1735231583530,0.00699033,96321.0,96312.0,0.207658]
[1735231583762,0.001,96321.0,96312.0,0.207658]
[1735231584004,0.003,96321.0,96311.0,0.0791]
[1735231584401,0.207643,96319.0,96311.0,0.0791]
[1735231584623,0.31162932,96319.0,96311.0,0.0791]
[1735231585204,0.00699033,96318.0,96311.0,0.0791]
[1735231585740,0.00699033,96318.0,96312.0,0.207658]
[1735231585966,0.00699033,96318.0,96316.0,0.207648]
[1735231586170,0.003,96319.0,96317.0,0.18752438]
[1735231586380,0.003,96319.0,96318.0,0.39413132]
[1735231586585,0.002,96319.0,96318.0,0.49811764]
[1735231587209,0.207579,96349.0,96318.0,0.20797264]
[1735231587429,0.00083403,96348.0,96325.0,0.29013]
[1735231587659,0.20757,96353.0,96325.0,0.29013]
[1735231587888,0.207558,96359.0,96325.0,0.44011632]
[1735231588074,0.207568,96354.0,96325.0,0.44011632]
[1735231588908,0.0001712,96358.0,96325.0,0.44011632]
[1735231589111,0.0001712,96358.0,96325.0,0.59011632]
[1735231589320,0.00110162,96326.0,96325.0,0.60211632]
[1735231589527,0.0001712,96358.0,96352.0,0.207572]
[1735231589730,0.0001712,96358.0,96353.0,0.0825]
[1735231590965,0.0031712,96358.0,96353.0,0.0825]
[1735231591348,0.0061712,96358.0,96353.0,0.0825]
[1735231591551,0.0031712,96358.0,96353.0,0.0825]
[1735231591953,0.0011712,96358.0,96353.0,0.0825]
[1735231592152,0.0021712,96358.0,96354.0,0.207567]
[1735231592375,0.0021712,96358.0,96355.0,0.15103774]
[1735231592535,0.0011712,96358.0,96357.0,0.27619529]
[1735231592753,0.0011712,96358.0,96357.0,0.48018161]
[1735231592997,0.0001712,96379.0,96378.0,0.207516]
[1735231593201,0.0001712,96379.0,96378.0,0.51225872]
[1735231593408,0.00068756,96379.0,96378.0,0.51225872]
[1735231593656,0.00068756,96379.0,96378.0,0.66225872]
[1735231594922,0.00068756,96379.0,96378.0,0.67025872]
[1735231595128,0.00068756,96379.0,96378.0,0.67425872]
[1735231595559,0.00068756,96379.0,96378.0,0.498016]
[1735231596168,0.00068756,96379.0,96378.0,0.53980136]
[1735231596374,0.00068756,96379.0,96378.0,0.66678768]
[1735231597398,0.00068756,96379.0,96378.0,1.09676268]
[1735231597594,0.00068756,96379.0,96378.0,1.10476268]
[1735231597867,0.00068756,96379.0,96378.0,1.10076268]
[1735231598092,0.00068756,96379.0,96378.0,0.99441043]
[1735231598284,0.00068756,96379.0,96378.0,0.95341043]
[1735231598494,0.207478,96396.0,96378.0,1.15192643]
[1735231598641,0.207478,96396.0,96378.0,1.15592643]
[1735231598843,0.207478,96396.0,96378.0,1.16392643]
[1735231599041,0.207478,96396.0,96378.0,0.79441043]
[1735231599262,0.01094513,96389.0,96378.0,0.79441043]
[1735231599451,0.207478,96396.0,96378.0,0.79841043]
[1735231599651,0.01094513,96388.0,96378.0,0.59089443]
[1735231599883,0.2075606,96397.0,96380.0,0.12456247]
[1735231600039,0.207487,96392.0,96379.0,0.207514]
[1735231600236,0.31147932,96389.0,96378.0,0.445975]
[1735231600443,0.207496,96387.0,96378.0,0.012]
[1735231600667,0.207496,96387.0,96377.0,0.03495755]
[1735231600874,0.01094513,96386.0,96378.0,0.004]
[1735231601077,0.01094513,96386.0,96378.0,0.006]
[1735231601391,0.01067022,96386.0,96378.0,0.002]
[1735231601605,0.01067022,96386.0,96378.0,0.005]
[1735231601829,0.01089931,96385.0,96377.0,0.002]
[1735231602032,0.10398632,96389.0,96377.0,0.002]
[1735231602378,0.01089931,96388.0,96377.0,0.07478849]
[1735231602558,0.01173334,96388.0,96377.0,0.07478849]
[1735231602692,0.01173334,96388.0,96374.0,0.2279628]
[1735231602693,0.001,96386.0,96374.0,0.2279628]
[1735231603143,0.001,96386.0,96374.0,0.0204398]
[1735231603344,0.01089931,96385.0,96374.0,0.0204398]
[1735231604654,0.10515752,96389.0,96374.0,0.0204398]
[1735231604866,0.01089931,96384.0,96376.0,0.20752]
[1735231605077,0.0001712,96389.0,96377.0,0.00103751]
[1735231605315,0.0001712,96389.0,96387.0,0.207495]
[1735231605558,0.0001712,96389.0,96388.0,0.00103733]
[1735231605785,0.0001712,96389.0,96388.0,0.09699056]
[1735231606028,0.0001712,96389.0,96388.0,0.07613733]
[1735231607370,0.0001712,96389.0,96388.0,0.08113733]
[1735231607951,0.0001712,96389.0,96388.0,0.08313733]
[1735231608191,0.0001712,96389.0,96388.0,0.12853733]
[1735231608880,0.0001712,96389.0,96388.0,0.01253732]
[1735231609020,0.0001712,96389.0,96388.0,0.07604125]
[1735231609220,0.0001712,96389.0,96388.0,0.92644217]
[1735231609461,0.0001712,96389.0,96388.0,0.92572048]
[1735231610828,0.0001712,96389.0,96388.0,0.93472048]
[1735231611066,0.0001712,96389.0,96388.0,0.93872048]
[1735231611260,0.0001712,96389.0,96388.0,0.94772048]
[1735231611501,0.0001712,96389.0,96388.0,0.94372048]
[1735231611898,0.0001712,96389.0,96388.0,1.02382048]
[1735231613487,8.56e-05,96397.0,96396.0,0.1]
[1735231613707,8.56e-05,96397.0,96396.0,0.59748461]
[1735231613930,8.56e-05,96397.0,96396.0,0.59676332]
[1735231614417,8.56e-05,96397.0,96396.0,0.47376332]
[1735231614646,8.56e-05,96397.0,96396.0,0.47676332]
[1735231614852,8.56e-05,96397.0,96396.0,0.381887]
[1735231615085,8.56e-05,96397.0,96396.0,0.367477]
[1735231618245,8.56e-05,96397.0,96396.0,0.01]
[1735231618488,8.56e-05,96397.0,96396.0,0.1819273]
[1735231618672,8.56e-05,96397.0,96396.0,0.26380673]
[1735231618874,8.56e-05,96397.0,96396.0,0.26308503]
[1735231619684,8.56e-05,96397.0,96396.0,0.1812056]
[1735231620627,8.56e-05,96397.0,96396.0,0.18192724]
[1735231620999,8.56e-05,96397.0,96396.0,0.01]
[1735231622528,8.56e-05,96397.0,96396.0,0.01072174]
[1735231622798,8.56e-05,96397.0,96396.0,0.00372174]
[1735231623042,8.56e-05,96397.0,96396.0,0.207477]
[1735231623453,8.56e-05,96397.0,96396.0,0.208477]
[1735231623660,8.56e-05,96397.0,96396.0,0.207477]
[1735231623783,8.56e-05,96397.0,96396.0,0.209477]
[1735231623989,8.56e-05,96397.0,96396.0,0.360477]
[1735231624214,8.56e-05,96397.0,96396.0,0.4171728]
[1735231624413,8.56e-05,96397.0,96396.0,0.4161728]
[1735231624616,8.56e-05,96397.0,96396.0,0.359477]
[1735231624817,8.56e-05,96397.0,96396.0,0.360477]
[1735231624997,8.56e-05,96397.0,96396.0,0.443677]
[1735231625371,8.56e-05,96397.0,96396.0,0.60284818]
[1735231626197,8.56e-05,96397.0,96396.0,1.04482318]
[1735231626403,8.56e-05,96397.0,96396.0,1.1488095]
[1735231627105,8.56e-05,96397.0,96396.0,1.1478095]
[1735231627256,0.0144099,96407.0,96397.0,0.441975]
[1735231627468,0.00024034,96401.0,96400.0,0.357468]
[1735231627667,0.00024034,96401.0,96400.0,0.38965286]
[1735231627870,0.00024034,96401.0,96400.0,0.45548799]
[1735231629002,0.0755,96424.0,96400.0,0.24801999]
[1735231629206,0.0755,96424.0,96406.0,0.41491]
[1735231629724,0.0755,96424.0,96408.0,0.207451]
[1735231631213,0.0755,96424.0,96408.0,0.208451]
[1735231631367,0.0755,96424.0,96408.0,0.258217]
[1735231632579,0.0755,96424.0,96408.0,0.208451]
[1735231632958,0.0001714,96423.0,96408.0,0.208451]
[1735231633211,0.0001714,96423.0,96408.0,0.27121247]
[1735231633448,0.0001714,96423.0,96408.0,0.42121247]
[1735231633646,0.0001714,96423.0,96408.0,0.54819879]
[1735231633982,0.0001714,96423.0,96408.0,0.62919879]
[1735231634088,0.0001714,96423.0,96408.0,0.73418511]
[1735231634498,0.0001714,96423.0,96408.0,0.83418511]
[1735231634768,0.0001714,96423.0,96408.0,0.83618511]
[1735231635573,0.0001714,96423.0,96408.0,1.17770832]
[1735231635869,0.0001714,96423.0,96408.0,1.19888577]
[1735231636075,0.0001714,96423.0,96408.0,1.19588577]
[1735231636453,0.0001714,96423.0,96408.0,1.20788577]
[1735231636655,0.0001714,96423.0,96408.0,1.20088577]
[1735231637043,0.0001714,96423.0,96408.0,1.20988577]
[1735231637245,0.0002856,96409.0,96408.0,1.20988577]
[1735231637469,6.302e-05,96409.0,96408.0,1.20988577]
[1735231638511,6.302e-05,96409.0,96408.0,1.48843027]
[1735231639285,6.302e-05,96409.0,96408.0,1.20988577]
[1735231639608,6.302e-05,96409.0,96408.0,1.75186077]
[1735231640180,6.302e-05,96409.0,96408.0,1.65186077]
[1735231640404,6.302e-05,96409.0,96408.0,1.75186077]
[1735231641276,0.0001714,96423.0,96422.0,0.207421]
[1735231641507,0.0001714,96423.0,96422.0,0.43110924]
[1735231642644,0.0001714,96423.0,96422.0,0.43310924]
[1735231642829,0.0001714,96423.0,96422.0,0.43910924]
[1735231643944,0.0001714,96423.0,96422.0,0.54100851]
[1735231644147,8.56e-05,96432.0,96423.0,0.15]
[1735231644364,0.00021935,96432.0,96423.0,0.15]
[1735231645325,0.00021935,96432.0,96423.0,0.001]
[1735231645878,0.0762,96431.0,96427.0,0.02092683]
[1735231646080,0.207413,96426.0,96423.0,0.003]
[1735231646287,0.00129638,96425.0,96423.0,0.003]
[1735231646480,0.0124486,96425.0,96423.0,0.003]
[1735231646812,0.01115222,96425.0,96415.0,0.12270987]
[1735231647251,0.0475,96430.0,96416.0,0.414867]
[1735231647631,0.01115222,96429.0,96416.0,0.414867]
[1735231647837,0.01115222,96429.0,96420.0,0.207424]
[1735231647993,0.0475,96430.0,96420.0,0.207424]
[1735231648413,0.01115222,96429.0,96420.0,0.207424]
[1735231648845,0.0475,96430.0,96420.0,0.207424]
[1735231649048,0.0475,96430.0,96416.0,0.207433]
[1735231649260,0.01115222,96429.0,96416.0,0.207433]
[1735231649470,0.01244853,96429.0,96416.0,0.207433]
[1735231650560,0.01315222,96429.0,96416.0,0.207433]
[1735231651086,0.01315222,96429.0,96420.0,0.207424]
[1735231652113,0.01315222,96429.0,96424.0,0.207416]
[1735231652313,0.00021935,96432.0,96426.0,0.207412]
[1735231652519,0.002,96429.0,96427.0,0.000721]
[1735231652756,0.002,96429.0,96426.0,0.207412]
[1735231653192,0.00021935,96432.0,96426.0,0.207412]
[1735231653541,0.00221935,96432.0,96426.0,0.207412]
[1735231653986,0.00221935,96432.0,96422.0,0.20742]
[1735231654458,0.00221935,96432.0,96427.0,0.207409]
[1735231654685,0.00221935,96432.0,96424.0,0.207416]
[1735231654923,0.00221935,96432.0,96418.0,0.20743]
[1735231655161,0.00021935,96432.0,96418.0,0.20743]
[1735231655394,0.01112625,96431.0,96418.0,0.20743]
[1735231656698,0.01312625,96431.0,96418.0,0.20743]
[1735231657093,0.207429,96419.0,96414.0,0.09252513]
[1735231657292,0.207423,96421.0,96414.0,0.09252513]
[1735231657589,0.01112625,96418.0,96411.0,0.09252513]
[1735231657787,0.207423,96421.0,96411.0,0.09252513]
[1735231657985,0.2281653,96421.0,96411.0,0.09252513]
[1735231658395,0.01112625,96420.0,96411.0,0.09252513]
[1735231658799,0.207427,96419.0,96411.0,0.001]
[1735231659230,0.01112625,96418.0,96408.0,0.0001712]
[1735231659456,0.01112625,96418.0,96409.0,0.207449]
[1735231659659,0.207421,96423.0,96414.0,0.003]
[1735231659834,0.207421,96423.0,96411.0,0.001]
[1735231660049,0.01112625,96422.0,96411.0,0.001]
[1735231660250,0.01112625,96422.0,96411.0,0.004]
[1735231660471,0.01112625,96422.0,96411.0,0.001]
[1735231660907,0.01112625,96422.0,96409.0,0.207449]
[1735231661106,0.01112625,96422.0,96418.0,0.0001712]
[1735231661890,0.01242267,96422.0,96418.0,0.0001712]
[1735231663337,0.01442267,96422.0,96418.0,0.0001712]
[1735231663961,0.01642267,96422.0,96409.0,0.2066202]
[1735231664339,0.00129642,96421.0,96409.0,0.2066202]
[1735231664535,0.00529642,96422.0,96409.0,0.2066202]
[1735231665590,0.00129642,96422.0,96409.0,0.2066202]
[1735231666001,0.002,96421.0,96409.0,0.2066202]
[1735231666251,0.00129642,96422.0,96411.0,0.207445]
[1735231666627,0.00329642,96422.0,96411.0,0.207445]
[1735231667130,0.002,96421.0,96411.0,0.207445]
[1735231668998,0.207425,96420.0,96408.0,0.0001712]
[1735231669227,0.207421,96423.0,96408.0,0.0001712]
[1735231669228,0.20872544,96419.0,96408.0,0.0001712]
[1735231669442,0.13925624,96418.0,96408.0,0.0001712]
[1735231669642,0.207445,96411.0,96408.0,0.0001712]
[1735231669845,0.207449,96409.0,96408.0,0.0001712]
[1735231670165,0.21855552,96409.0,96408.0,0.0001712]
[1735231671179,0.32254184,96409.0,96408.0,0.0001712]
[1735231671398,0.39944184,96409.0,96408.0,0.0001712]
[1735231672019,0.40144184,96409.0,96408.0,0.0001712]
[1735231672866,0.39944184,96409.0,96408.0,0.0001712]
[1735231673165,0.40444184,96409.0,96408.0,0.0001712]
[1735231673528,0.40544184,96409.0,96408.0,0.0001712]
[1735231673765,0.30145552,96409.0,96408.0,0.0001712]
[1735231673910,0.30045552,96409.0,96398.0,0.2066432]
[1735231674135,0.00129662,96408.0,96398.0,0.2066432]
[1735231674340,0.207453,96407.0,96393.0,0.207483]
[1735231674540,0.20875162,96406.0,96393.0,0.207483]
[1735231674785,0.21980965,96406.0,96393.0,0.207483]
[1735231675177,0.207469,96400.0,96392.0,0.02075377]
[1735231675696,0.01105803,96399.0,96392.0,0.02075377]
[1735231676071,0.207467,96401.0,96392.0,0.02075377]
[1735231676355,0.01235473,96400.0,96392.0,0.02075377]
[1735231676744,0.001,96399.0,96392.0,0.02075377]
[1735231677112,0.0012967,96400.0,96392.0,0.02075377]
[1735231677315,0.01105803,96398.0,96393.0,0.26030836]
[1735231677520,0.001,96400.0,96397.0,0.207473]
[1735231677816,0.001,96400.0,96399.0,0.357471]
[1735231678026,0.001,96400.0,96399.0,0.54445732]
[1735231678146,0.002,96401.0,96400.0,0.15]
[1735231678347,0.002,96401.0,96400.0,0.25470771]
[1735231678547,0.0820856,96432.0,96400.0,0.69596132]
[1735231678772,0.0820856,96432.0,96420.0,0.207425]
[1735231678993,0.00138197,96431.0,96420.0,0.207425]
[1735231679358,8.56e-05,96431.0,96420.0,0.207425]
[1735231680244,0.0010856,96421.0,96420.0,0.207425]
[1735231680728,0.0010856,96421.0,96420.0,0.208425]
[1735231681161,0.0010856,96421.0,96420.0,0.209425]
[1735231681810,8.56e-05,96421.0,96420.0,0.209425]
[1735231682057,8.56e-05,96421.0,96420.0,0.208425]
[1735231682319,8.56e-05,96421.0,96420.0,0.210425]
[1735231683846,8.56e-05,96421.0,96420.0,0.23354766]
[1735231684074,8.56e-05,96421.0,96420.0,0.02612266]
[1735231685516,8.56e-05,96421.0,96420.0,0.02412266]
[1735231685820,0.0010856,96421.0,96420.0,0.02384373]
[1735231686041,8.56e-05,96421.0,96420.0,0.02384373]
[1735231686487,8.56e-05,96421.0,96420.0,0.21210898]
[1735231686697,8.56e-05,96421.0,96420.0,0.25755474]
[1735231686906,8.56e-05,96421.0,96420.0,0.21310898]
[1735231687117,8.56e-05,96421.0,96420.0,0.21110898]
[1735231687288,8.56e-05,96421.0,96420.0,0.21010898]
[1735231687489,8.56e-05,96421.0,96420.0,0.21110898]
[1735231687895,8.56e-05,96421.0,96420.0,0.21510898]
[1735231688301,8.56e-05,96421.0,96420.0,0.55632853]
[1735231688826,8.56e-05,96421.0,96420.0,0.55532853]
[1735231689022,8.56e-05,96421.0,96420.0,0.55832853]